bitfinex/quotes_BTCUSD_20250316
["timestamp","ask_amount","ask_price","bid_price","bid_amount"]
[1742168797855,0.30041063,82752.0,82750.0,0.012084]
[1742168798055,0.30041063,82752.0,82751.0,0.0551769]
[1742168798272,0.00041063,82752.0,82751.0,0.012084]
[1742168798415,0.01935376,82752.0,82751.0,0.092084]
[1742168798818,0.00041063,82752.0,82751.0,0.092084]
[1742168799642,0.00041063,82752.0,82751.0,0.095084]
[1742168800255,0.00041063,82752.0,82751.0,0.144884]
[1742168800461,0.00041063,82752.0,82751.0,0.22251364]
[1742168801099,0.00041063,82752.0,82751.0,0.22651364]
[1742168803795,0.00041063,82752.0,82751.0,0.1368]
[1742168804723,0.00041063,82752.0,82751.0,0.1328]
[1742168804879,0.00041063,82752.0,82751.0,0.144884]
[1742168805086,0.00041063,82752.0,82751.0,0.143884]
[1742168805404,0.00041063,82752.0,82751.0,0.1328]
[1742168805601,0.00041063,82752.0,82751.0,0.1318]
[1742168805802,0.00041063,82752.0,82751.0,0.2009927]
[1742168806001,0.00041063,82752.0,82751.0,0.2019927]
[1742168806204,0.01249463,82752.0,82751.0,0.2019927]
[1742168806537,0.01249463,82752.0,82751.0,0.1328]
[1742168806739,0.01266383,82752.0,82751.0,0.1328]
[1742168806914,0.01266383,82752.0,82751.0,0.1308]
[1742168807172,0.01266383,82752.0,82751.0,0.1338]
[1742168807318,0.00057983,82752.0,82751.0,0.1338]
[1742168807499,0.00057983,82752.0,82751.0,0.2031933]
[1742168808207,0.00057983,82752.0,82751.0,0.2152773]
[1742168809057,0.00057983,82752.0,82751.0,0.2031933]
[1742168809820,0.00057983,82752.0,82751.0,0.3965443]
[1742168810168,0.00057983,82752.0,82751.0,0.4086283]
[1742168810641,0.01952033,82752.0,82751.0,0.4086283]
[1742168811679,0.00057983,82752.0,82751.0,0.4086283]
[1742168814162,0.00057983,82752.0,82751.0,1.9056283]
[1742168814396,0.00057983,82752.0,82751.0,1.9096283]
[1742168814952,0.00057983,82752.0,82751.0,1.9056283]
[1742168815374,0.00057983,82752.0,82751.0,1.92091167]
[1742168815755,0.00057983,82752.0,82751.0,1.92291167]
[1742168815960,0.00057983,82752.0,82751.0,1.91691167]
[1742168816347,0.00057983,82752.0,82751.0,1.92291167]
[1742168817285,0.00057983,82752.0,82751.0,1.92891167]
[1742168822586,8.3e-07,82752.0,82751.0,2.35515252]
[1742168823203,0.0001692,82756.0,82755.0,0.205424]
[1742168823204,3e-08,82756.0,82755.0,0.205424]
[1742168823417,3e-08,82756.0,82755.0,0.99492292]
[1742168823616,3e-08,82756.0,82755.0,0.99371491]
[1742168824065,3e-08,82756.0,82755.0,2.49371491]
[1742168824471,3e-08,82756.0,82755.0,2.49971491]
[1742168824825,3e-08,82756.0,82755.0,2.49371491]
[1742168825278,3e-08,82756.0,82755.0,2.49971491]
[1742168825517,3e-08,82756.0,82755.0,2.50571491]
[1742168826687,0.01893553,82784.0,82783.0,0.205355]
[1742168826936,0.0001691,82788.0,82787.0,0.281946]
[1742168827294,0.0002923,82788.0,82787.0,0.281946]
[1742168828575,0.0002923,82788.0,82787.0,0.293946]
[1742168829235,0.0002923,82788.0,82787.0,0.299946]
[1742168829825,0.0002923,82788.0,82787.0,0.287946]
[1742168830031,0.0002923,82788.0,82787.0,0.35671628]
[1742168830409,0.0002923,82788.0,82787.0,0.36271628]
[1742168830587,0.0002923,82788.0,82787.0,0.36871628]
[1742168830788,0.0002923,82788.0,82787.0,0.36271628]
[1742168831148,0.0002923,82788.0,82787.0,0.36871628]
[1742168831550,0.00019191,82788.0,82787.0,1.86871628]
[1742168832551,0.00019191,82788.0,82787.0,1.88072371]
[1742168832760,0.00019191,82788.0,82787.0,1.92702371]
[1742168833161,0.00019191,82788.0,82787.0,1.93596198]
[1742168833693,0.00019191,82788.0,82787.0,1.92396198]
[1742168833923,0.00019191,82788.0,82787.0,1.92996198]
[1742168834491,0.00019191,82788.0,82787.0,1.90901628]
[1742168834703,0.00019191,82788.0,82787.0,0.22988928]
[1742168835107,0.00019191,82788.0,82787.0,0.23588928]
[1742168835445,0.00019191,82788.0,82787.0,0.22988928]
[1742168835806,0.00019191,82788.0,82787.0,0.23388928]
[1742168836044,0.00019191,82788.0,82787.0,0.22988928]
[1742168836212,0.00019191,82788.0,82787.0,0.22388928]
[1742168836415,0.00019191,82788.0,82787.0,0.23388928]
[1742168837046,0.00019191,82788.0,82787.0,0.22788928]
[1742168837261,0.00019191,82788.0,82787.0,0.23388928]
[1742168837696,0.00019191,82788.0,82787.0,0.22181028]
[1742168837904,0.00019191,82788.0,82787.0,0.09684928]
[1742168838103,0.00019191,82788.0,82787.0,0.22181028]
[1742168838312,0.00019191,82788.0,82787.0,0.08477028]
[1742168838690,0.00019191,82788.0,82787.0,0.01]
[1742168840064,0.00019191,82788.0,82787.0,0.022079]
[1742168841357,0.00019191,82788.0,82787.0,0.100979]
[1742168841498,0.00019191,82788.0,82787.0,0.149179]
[1742168841699,0.00019191,82788.0,82787.0,1.649179]
[1742168841908,0.00019191,82788.0,82787.0,1.76875403]
[1742168842518,0.00019191,82788.0,82787.0,1.76909203]
[1742168843809,0.00019191,82788.0,82787.0,1.62991303]
[1742168844934,0.01227091,82788.0,82787.0,0.12991303]
[1742168845130,0.01227091,82788.0,82787.0,0.010338]
[1742168845334,0.0136569,82788.0,82787.0,0.010338]
[1742168849738,0.3136569,82788.0,82787.0,0.010338]
[1742168850704,0.3136569,82788.0,82787.0,0.004338]
[1742168851702,0.3895569,82788.0,82787.0,0.004338]
[1742168852099,0.40849197,82788.0,82787.0,0.002338]
[1742168852643,0.40849197,82788.0,82787.0,0.001338]
[1742168853052,0.40849197,82788.0,82787.0,0.000338]
[1742168853253,0.3895569,82788.0,82787.0,0.000338]
[1742168856130,0.3136569,82788.0,82787.0,0.000338]
[1742168856499,0.33259234,82788.0,82787.0,0.000338]
[1742168857275,0.3136569,82788.0,82787.0,0.000338]
[1742168857869,0.3895569,82788.0,82787.0,0.000338]
[1742168860410,0.3136569,82788.0,82787.0,0.000338]
[1742168863360,0.0015779,82788.0,82787.0,0.272005]
[1742168863564,0.0015779,82788.0,82787.0,0.1421551]
[1742168864463,0.0015779,82788.0,82787.0,0.1300761]
[1742168864669,0.0015779,82788.0,82787.0,1.6431551]
[1742168865310,0.0015779,82788.0,82787.0,1.6421551]
[1742168865529,0.0015779,82788.0,82787.0,1.6461551]
[1742168866097,0.02051057,82788.0,82787.0,1.6461551]
[1742168867027,0.02051057,82788.0,82787.0,1.6491551]
[1742168867383,0.02051057,82788.0,82787.0,0.0586761]
[1742168867589,0.03258957,82788.0,82787.0,0.007338]
[1742168868053,0.0136569,82788.0,82787.0,0.007338]
[1742168868287,0.0136569,82788.0,82787.0,0.000338]
[1742168868679,0.0136569,82788.0,82787.0,0.007338]
[1742168869077,0.0136569,82788.0,82787.0,0.003338]
[1742168869458,0.0136569,82788.0,82787.0,0.005338]
[1742168870201,0.0136569,82788.0,82787.0,0.002338]
[1742168870406,0.0136569,82788.0,82787.0,0.003338]
[1742168874843,0.0015779,82788.0,82787.0,0.003338]
[1742168874991,0.0136569,82788.0,82787.0,0.0471494]
[1742168875412,0.0136569,82788.0,82787.0,0.003338]
[1742168876548,0.0325908,82788.0,82787.0,0.003338]
[1742168878344,0.0136569,82788.0,82787.0,0.003338]
[1742168879870,0.32819775,82788.0,82787.0,0.003338]
[1742168879996,0.45319775,82788.0,82787.0,0.003338]
[1742168880203,0.48953375,82788.0,82787.0,0.003338]
[1742168880861,0.48953375,82788.0,82787.0,0.001338]
[1742168881380,0.48953375,82788.0,82787.0,0.000338]
[1742168882827,0.50847073,82788.0,82787.0,0.000338]
[1742168883490,0.92406913,82788.0,82787.0,0.000338]
[1742168885281,0.74819228,82788.0,82787.0,0.000338]
[1742168885484,0.7292553,82788.0,82787.0,0.000338]
[1742168887066,0.7292553,82788.0,82787.0,0.0084418]
[1742168887522,0.7292553,82788.0,82787.0,0.000338]
[1742168887718,0.4292553,82788.0,82787.0,0.000338]
[1742168889074,0.0136569,82788.0,82787.0,0.000338]
[1742168895401,0.03259182,82788.0,82787.0,0.000338]
[1742168896130,0.03259182,82788.0,82787.0,0.000238]
[1742168898179,0.0136569,82788.0,82787.0,0.000238]
[1742168901592,0.02051251,82788.0,82787.0,0.000238]
[1742168901797,0.02051251,82788.0,82787.0,0.337284]
[1742168902001,0.02051251,82788.0,82787.0,0.39277342]
[1742168903272,0.02051251,82788.0,82787.0,0.39477342]
[1742168904441,0.02051251,82788.0,82787.0,1.89477342]
[1742168905044,0.02051251,82788.0,82787.0,1.89777342]
[1742168905686,0.03259151,82788.0,82787.0,0.136938]
[1742168906085,0.03259151,82788.0,82787.0,0.134938]
[1742168906287,0.03259151,82788.0,82787.0,0.007238]
[1742168906485,0.03259151,82788.0,82787.0,0.004238]
[1742168906687,0.03259151,82788.0,82787.0,0.006238]
[1742168907291,0.03259151,82788.0,82787.0,0.000238]
[1742168907515,0.0015779,82788.0,82787.0,0.086338]
[1742168907674,0.0015779,82788.0,82787.0,0.09498992]
[1742168907874,0.0015779,82788.0,82787.0,0.09398992]
[1742168908118,0.0015779,82788.0,82787.0,0.09198992]
[1742168908319,0.0015779,82788.0,82787.0,0.09298992]
[1742168908522,0.0015779,82788.0,82787.0,0.10506892]
[1742168909501,0.0015779,82788.0,82787.0,0.10406892]
[1742168909892,0.0015779,82788.0,82787.0,0.10906892]
[1742168910318,0.0136569,82788.0,82787.0,0.005238]
[1742168910497,0.2069209,82788.0,82787.0,0.009238]
[1742168910896,0.22585424,82788.0,82787.0,0.009238]
[1742168911308,0.22585424,82788.0,82787.0,0.000238]
[1742168911669,0.22585424,82788.0,82787.0,0.002238]
[1742168912911,0.22585424,82788.0,82787.0,0.000238]
[1742168913232,0.22585424,82788.0,82787.0,0.002238]
[1742168913471,0.22585424,82788.0,82787.0,0.000238]
[1742168913870,0.22585424,82788.0,82787.0,0.001238]
[1742168914073,0.22585424,82788.0,82787.0,0.004238]
[1742168914768,0.22585424,82788.0,82787.0,0.001238]
[1742168915015,0.22585424,82788.0,82787.0,0.003238]
[1742168917652,0.2069209,82788.0,82787.0,0.003238]
[1742168920960,0.22585417,82788.0,82787.0,0.003238]
[1742168922197,0.2069209,82788.0,82787.0,0.003238]
[1742168925118,0.22585404,82788.0,82787.0,0.003238]
[1742168926463,0.02051104,82788.0,82787.0,0.29678222]
[1742168926676,0.0015779,82788.0,82787.0,0.35686122]
[1742168927277,0.0015779,82788.0,82787.0,0.35486122]
[1742168927713,0.0015779,82788.0,82787.0,0.35586122]
[1742168927913,0.0015779,82788.0,82787.0,0.36186122]
[1742168928175,0.0015779,82788.0,82787.0,0.35986122]
[1742168928579,0.0015779,82788.0,82787.0,0.37209989]
[1742168928938,0.0015779,82788.0,82787.0,0.35986122]
[1742168929407,0.0015779,82788.0,82787.0,0.127638]
[1742168929529,0.0015779,82788.0,82787.0,0.264598]
[1742168929726,0.0015779,82788.0,82787.0,0.270598]
[1742168929984,0.0015779,82788.0,82787.0,0.276677]
[1742168930162,0.02051013,82788.0,82787.0,0.276677]
[1742168930340,0.02051013,82788.0,82787.0,0.37076032]
[1742168930549,0.02051013,82788.0,82787.0,0.36476032]
[1742168930954,0.02051013,82788.0,82787.0,0.37576032]
[1742168931357,0.02051013,82788.0,82787.0,0.36976032]
[1742168931788,0.02051013,82788.0,82787.0,0.37576032]
[1742168936051,0.02051013,82788.0,82787.0,0.09932132]
[1742168936235,0.60545313,82788.0,82787.0,0.011238]
[1742168936434,0.5865209,82788.0,82787.0,0.011238]
[1742168936847,0.5865209,82788.0,82787.0,0.005238]
[1742168937260,0.5865209,82788.0,82787.0,0.002238]
[1742168937649,0.5865209,82788.0,82787.0,0.000238]
[1742168938085,0.5865209,82788.0,82787.0,0.001238]
[1742168938235,0.5069209,82788.0,82787.0,0.001238]
[1742168938420,0.0015779,82788.0,82787.0,0.001238]
[1742168938621,0.0015779,82788.0,82787.0,0.000238]
[1742168938820,0.0015779,82788.0,82787.0,0.01518382]
[1742168939657,0.21377603,82788.0,82787.0,0.01518382]
[1742168939880,0.21377603,82788.0,82787.0,0.000238]
[1742168940080,0.22585503,82788.0,82787.0,0.000238]
[1742168940495,0.22585503,82788.0,82787.0,0.002238]
[1742168940674,0.22585503,82788.0,82787.0,0.003238]
[1742168941241,0.22585503,82788.0,82787.0,0.001238]
[1742168941416,0.22585503,82788.0,82787.0,0.003238]
[1742168942619,0.22585503,82788.0,82787.0,0.004238]
[1742168947070,0.22585503,82788.0,82787.0,0.002238]
[1742168947424,0.22585503,82788.0,82787.0,0.001238]
[1742168949548,0.22585503,82788.0,82787.0,0.013317]
[1742168949549,0.02051203,82788.0,82787.0,0.013317]
[1742168949792,0.02051203,82788.0,82787.0,0.02433042]
[1742168949930,0.02051203,82788.0,82787.0,1.52433042]
[1742168950139,0.0015779,82788.0,82787.0,0.02333042]
[1742168950841,0.0015779,82788.0,82787.0,0.03540942]
[1742168951006,0.0015779,82788.0,82787.0,0.03740942]
[1742168951221,0.0015779,82788.0,82787.0,0.04040942]
[1742168952705,0.0015779,82788.0,82787.0,0.11990942]
[1742168953515,0.0015779,82788.0,82787.0,0.16720942]
[1742168954579,0.0015779,82788.0,82787.0,0.16420942]
[1742168954874,0.0015779,82788.0,82787.0,0.16720942]
[1742168955075,0.0015779,82788.0,82787.0,0.17120942]
[1742168960771,0.0136569,82788.0,82787.0,0.03233042]
[1742168960973,0.0136569,82788.0,82787.0,0.009238]
[1742168961692,0.0136569,82788.0,82787.0,0.004238]
[1742168962108,0.0136569,82788.0,82787.0,0.008238]
[1742168962305,0.0015779,82788.0,82787.0,0.008238]
[1742168962501,0.0015779,82788.0,82787.0,0.04735882]
[1742168962849,0.0015779,82788.0,82787.0,0.04335882]
[1742168963044,0.0015779,82788.0,82787.0,0.04635882]
[1742168963408,0.0015779,82788.0,82787.0,0.05035882]
[1742168964048,0.0136569,82788.0,82787.0,0.05035882]
[1742168965272,0.0015779,82788.0,82787.0,0.05035882]
[1742168965893,0.0015779,82788.0,82787.0,0.05507882]
[1742168967243,0.0015779,82788.0,82787.0,0.06715782]
[1742168968226,0.2069209,82788.0,82787.0,0.011958]
[1742168968474,0.20843089,82788.0,82787.0,0.011958]
[1742168968686,0.2069209,82788.0,82787.0,0.011958]
[1742168969016,0.2069209,82788.0,82787.0,0.007958]
[1742168969861,0.20843108,82788.0,82787.0,0.007958]
[1742168970066,0.2069209,82788.0,82787.0,0.007958]
[1742168971647,0.23086033,82788.0,82787.0,0.004958]
[1742168971830,0.23086033,82788.0,82787.0,0.005958]
[1742168972041,0.24979445,82788.0,82787.0,0.005958]
[1742168972400,0.24979445,82788.0,82787.0,0.004958]
[1742168972803,0.24979445,82788.0,82787.0,0.005958]
[1742168976341,0.22585502,82788.0,82787.0,0.005958]
[1742168977300,0.2069209,82788.0,82787.0,0.005958]
[1742168980485,0.22585487,82788.0,82787.0,0.005958]
[1742168984014,0.22736488,82788.0,82787.0,0.005958]
[1742168987410,0.22585487,82788.0,82787.0,0.005958]
[1742168988055,0.22736497,82788.0,82787.0,0.005958]
[1742168989814,0.95750422,82788.0,82787.0,0.005958]
[1742168989978,0.93706015,82788.0,82787.0,0.005958]
[1742168990665,0.93706015,82788.0,82787.0,0.004958]
[1742168992331,0.9225193,82788.0,82787.0,0.004958]
[1742168993430,0.94245452,82788.0,82787.0,0.004958]
[1742168993869,0.94145452,82788.0,82787.0,0.004958]
[1742168994150,0.94245452,82788.0,82787.0,0.004958]
[1742168994713,0.94345452,82788.0,82787.0,0.004958]
[1742168997385,0.9245193,82788.0,82787.0,0.004958]
[1742169000748,0.94345483,82788.0,82787.0,0.004958]
[1742169002949,0.95799568,82788.0,82787.0,0.004958]
[1742169003720,1.08739568,82788.0,82787.0,0.004958]
[1742169003869,1.14239568,82788.0,82787.0,1e-06]
[1742169004067,1.17873668,82788.0,82787.0,1e-06]
[1742169004500,1.17373668,82788.0,82787.0,1e-06]
[1742169004825,1.08739568,82788.0,82787.0,1e-06]
[1742169005037,1.13539568,82788.0,82787.0,1e-06]
[1742169005390,1.08539568,82788.0,82787.0,0.0003392]
[1742169005786,1.14039568,82788.0,82787.0,2e-07]
[1742169006312,1.14039568,82788.0,82752.0,0.012084]
[1742169006313,0.505432,82752.0,82751.0,0.0003382]
[1742169007258,0.52437505,82752.0,82751.0,0.0003382]
[1742169007465,0.505432,82752.0,82751.0,0.0003382]
[1742169007581,0.505432,82752.0,82751.0,0.0083382]
[1742169007991,0.505432,82752.0,82751.0,0.0003382]
[1742169008196,0.505432,82752.0,82751.0,0.0013382]
[1742169008396,0.505432,82752.0,82751.0,0.0033382]
[1742169008693,0.51997285,82752.0,82751.0,0.0033382]
[1742169008894,0.61465658,82752.0,82751.0,0.0033382]
[1742169010105,0.65100958,82752.0,82751.0,0.0033382]
[1742169010469,1.20176794,82752.0,82751.0,2e-07]
[1742169010666,1.25176794,82752.0,82751.0,2e-07]
[1742169011010,0.52498585,82747.0,82746.0,6e-07]
[1742169011211,0.52498585,82747.0,82746.0,2e-08]
[1742169011410,0.77716088,82747.0,82746.0,2e-08]
[1742169012256,1.23955928,82747.0,82746.0,2e-08]
[1742169012477,0.505511,82720.0,82705.0,0.0003382]
[1742169012689,0.505511,82720.0,82719.0,0.00074903]
[1742169012690,0.93565025,82720.0,82719.0,0.00074903]
[1742169013249,0.95460131,82720.0,82719.0,0.00074903]
[1742169014108,0.95560131,82720.0,82719.0,0.00074903]
[1742169014270,0.96044931,82720.0,82719.0,0.00074903]
[1742169014875,0.96244931,82720.0,82719.0,0.00074903]
[1742169015641,0.98616681,82720.0,82719.0,0.00074903]
[1742169016858,0.98616681,82720.0,82719.0,0.00074903]
[1742169017219,0.96721575,82720.0,82719.0,0.00074903]
[1742169017420,0.97221575,82720.0,82719.0,0.00074903]
[1742169018367,0.97121575,82720.0,82719.0,0.00074903]
[1742169018546,1.10825575,82720.0,82719.0,0.00074903]
[1742169019393,1.10325575,82720.0,82719.0,0.00074903]
[1742169019601,1.10525575,82720.0,82719.0,0.00074903]
[1742169019805,1.11235755,82720.0,82719.0,0.00074903]
[1742169019998,1.11435755,82720.0,82719.0,0.00074903]
[1742169020198,0.9536749,82720.0,82719.0,0.00074903]
[1742169020599,0.98716807,82720.0,82719.0,0.00074903]
[1742169021102,0.98516807,82720.0,82719.0,0.00074903]
[1742169021306,0.98316807,82720.0,82719.0,0.00074903]
[1742169021461,0.98416807,82720.0,82719.0,0.00074903]
[1742169021662,0.98616807,82720.0,82719.0,0.00074903]
[1742169023631,0.99528351,82720.0,82719.0,0.00074903]
[1742169026666,1.07828351,82720.0,82719.0,0.00074903]
[1742169026880,0.99528351,82720.0,82719.0,0.00074903]
[1742169034186,0.99528351,82720.0,82719.0,0.00326903]
[1742169037734,0.98616807,82720.0,82719.0,0.00326903]
[1742169045756,0.02680032,82720.0,82719.0,0.08596903]
[1742169045956,0.003,82720.0,82719.0,0.14034953]
[1742169046896,0.002,82720.0,82719.0,0.14034953]
[1742169047094,0.193421,82721.0,82719.0,0.08596903]
[1742169047303,0.001,82720.0,82719.0,0.08796903]
[1742169047508,0.001,82720.0,82719.0,0.08596903]
[1742169047827,0.012088,82722.0,82719.0,0.08796903]
[1742169048029,0.012088,82722.0,82719.0,0.09096903]
[1742169048223,0.012088,82723.0,82719.0,0.09096903]
[1742169048422,0.312088,82726.0,82720.0,0.090588]
[1742169048649,0.505498,82726.0,82721.0,0.205506]
[1742169048908,0.217477,82732.0,82725.0,0.012088]
[1742169049104,0.217477,82732.0,82722.0,0.0674563]
[1742169049105,0.312087,82730.0,82726.0,0.0785]
[1742169049238,0.3,82728.0,82726.0,0.0785]
[1742169050086,0.21234927,82730.0,82726.0,0.0785]
[1742169050287,0.3,82729.0,82726.0,0.0785]
[1742169050489,0.193401,82730.0,82726.0,0.271907]
[1742169050892,0.193401,82730.0,82726.0,0.272907]
[1742169051211,0.193401,82730.0,82726.0,0.15705443]
[1742169051409,0.012087,82728.0,82726.0,0.15605443]
[1742169051788,0.012087,82728.0,82726.0,0.0785]
[1742169053021,0.205493,82728.0,82726.0,0.0785]
[1742169053437,0.2244404,82728.0,82726.0,0.0795]
[1742169055005,0.012087,82727.0,82726.0,0.0795]
[1742169056944,0.012087,82727.0,82726.0,0.0785]
[1742169057166,0.012087,82727.0,82726.0,0.0795]
[1742169057946,0.0189474,82728.0,82726.0,0.15812873]
[1742169058249,0.0189474,82728.0,82727.0,0.283994]
[1742169060080,0.3,82737.0,82734.0,0.205474]
[1742169060446,0.3,82737.0,82735.0,0.0785]
[1742169060769,0.3,82737.0,82735.0,1.771886]
[1742169060980,0.20546,82741.0,82735.0,1.5785]
[1742169060981,0.3,82738.0,82735.0,1.5785]
[1742169061227,0.193383,82737.0,82735.0,1.5785]
[1742169061601,0.312086,82738.0,82735.0,1.5785]
[1742169061832,0.505468,82738.0,82736.0,0.11957503]
[1742169062861,0.505469,82738.0,82736.0,0.11957503]
[1742169063092,0.3,82740.0,82736.0,0.11957503]
[1742169063299,0.62100033,82752.0,82745.0,0.193365]
[1742169063504,0.01205393,82752.0,82745.0,0.3589035]
[1742169063705,0.3,82750.0,82745.0,0.3589035]
[1742169063855,0.01911316,82746.0,82745.0,0.3579035]
[1742169064541,0.01911316,82746.0,82745.0,0.3599035]
[1742169065106,0.01911316,82746.0,82745.0,0.3629035]
[1742169065308,0.01911316,82746.0,82745.0,0.37501584]
[1742169065682,0.01911316,82746.0,82745.0,0.51201584]
[1742169065953,0.01911316,82746.0,82745.0,2.01201584]
[1742169066373,0.4155984,82775.0,82772.0,0.1241]
[1742169066545,0.00012317,82775.0,82773.0,0.0136181]
[1742169068106,0.00012317,82775.0,82774.0,0.205378]
[1742169070389,0.00012317,82775.0,82774.0,0.206378]
[1742169070591,0.00012317,82775.0,82774.0,0.28428081]
[1742169070953,0.00012317,82775.0,82774.0,0.08998381]
[1742169071265,0.00012317,82775.0,82774.0,0.09498381]
[1742169071503,0.00012317,82775.0,82774.0,0.28828081]
[1742169071794,0.00012317,82775.0,82774.0,0.08290281]
[1742169072014,0.20549817,82775.0,82774.0,0.08290281]
[1742169072162,0.20549817,82775.0,82774.0,0.005]
[1742169072901,0.20549817,82775.0,82774.0,0.198297]
[1742169072902,0.0190602,82775.0,82774.0,0.198297]
[1742169073103,0.0190602,82775.0,82774.0,0.210378]
[1742169073280,0.0190602,82775.0,82774.0,0.09158321]
[1742169073486,0.0311402,82775.0,82774.0,0.09158321]
[1742169073685,0.0311402,82775.0,82774.0,0.002]
[1742169074089,0.0311402,82775.0,82774.0,0.004]
[1742169074296,0.0311402,82775.0,82774.0,0.002]
[1742169074470,0.0311402,82775.0,82774.0,0.005]
[1742169074674,0.0311402,82775.0,82774.0,0.003]
[1742169075012,0.0311402,82775.0,82774.0,0.029406]
[1742169076260,0.0311402,82775.0,82774.0,0.031406]
[1742169076383,0.33265027,82775.0,82774.0,0.005]
[1742169076590,0.31220317,82775.0,82774.0,0.005]
[1742169077027,0.31220317,82775.0,82774.0,0.002]
[1742169077545,0.31220317,82775.0,82774.0,0.003]
[1742169077950,0.31220317,82775.0,82754.0,0.0481]
[1742169077951,0.012083,82755.0,82754.0,0.0481]
[1742169079349,0.193341,82756.0,82754.0,0.0521]
[1742169079550,0.012083,82758.0,82754.0,0.0521]
[1742169080011,0.01894016,82756.0,82754.0,0.0521]
[1742169080313,0.01894016,82756.0,82754.0,0.0561]
[1742169080448,0.01894016,82756.0,82755.0,0.11957503]
[1742169080848,0.205422,82757.0,82755.0,0.11957503]
[1742169081110,0.012083,82757.0,82755.0,0.11957503]
[1742169081561,0.205422,82757.0,82755.0,0.11957503]
[1742169081725,0.205422,82757.0,82755.0,0.12257503]
[1742169081899,0.205422,82757.0,82756.0,0.11957503]
[1742169082114,0.012083,82757.0,82756.0,0.11957503]
[1742169082496,0.012083,82757.0,82755.0,1.507]
[1742169082961,0.312081,82768.0,82760.0,0.012083]
[1742169083172,0.012079,82784.0,82772.0,0.193302]
[1742169083378,0.01220317,82775.0,82773.0,0.1467464]
[1742169083604,0.012081,82774.0,82773.0,0.0985464]
[1742169083777,0.012081,82774.0,82773.0,0.0768]
[1742169084411,0.01906018,82775.0,82773.0,0.282178]
[1742169084582,0.01906018,82775.0,82774.0,0.012081]
[1742169084807,0.01906018,82775.0,82774.0,0.062045]
[1742169085595,0.0001693,82803.0,82787.0,0.205346]
[1742169085800,0.0001693,82803.0,82787.0,0.295238]
[1742169086144,0.0001693,82803.0,82787.0,0.3857598]
[1742169086904,0.0001693,82803.0,82787.0,0.8456598]
[1742169087116,0.0001693,82803.0,82787.0,0.8574595]
[1742169087536,0.0001693,82803.0,82787.0,0.8634595]
[1742169087712,0.012077,82800.0,82787.0,0.8634595]
[1742169087925,0.193258,82791.0,82787.0,0.6463138]
[1742169088125,0.20534,82790.0,82787.0,0.7832338]
[1742169088332,0.0135337,82788.0,82787.0,0.3715338]
[1742169088468,0.0014547,82788.0,82787.0,0.27392]
[1742169088974,0.0135337,82788.0,82787.0,0.27392]
[1742169089195,0.0014547,82788.0,82787.0,0.27392]
[1742169090340,0.0014547,82788.0,82787.0,0.279999]
[1742169090531,0.0014547,82788.0,82787.0,0.3484847]
[1742169090732,0.0014547,82788.0,82787.0,0.3524847]
[1742169091366,0.0014547,82788.0,82787.0,0.3404057]
[1742169093081,0.0014547,82788.0,82787.0,0.2034857]
[1742169095061,0.0014547,82788.0,82787.0,0.1552857]
[1742169095299,0.0135337,82788.0,82787.0,0.007]
[1742169095406,0.3135337,82788.0,82787.0,0.007]
[1742169096244,0.4504137,82788.0,82787.0,0.007]
[1742169096446,0.88055295,82788.0,82787.0,0.004]
[1742169096645,0.8660121,82788.0,82787.0,0.004]
[1742169096930,0.012081,82774.0,82767.0,0.205393]
[1742169097134,0.193303,82772.0,82768.0,0.06174031]
[1742169097538,0.20538,82773.0,82768.0,0.06174031]
[1742169097738,0.3,82774.0,82770.0,0.193305]
[1742169097930,0.3,82774.0,82770.0,0.012081]
[1742169098332,0.50538,82774.0,82768.0,0.06174031]
[1742169098576,0.50538,82774.0,82769.0,0.04756605]
[1742169098577,0.193301,82773.0,82769.0,0.04756605]
[1742169098783,0.012081,82769.0,82768.0,0.003]
[1742169099289,0.312081,82769.0,82768.0,0.006]
[1742169099691,0.32413531,82769.0,82768.0,0.006]
[1742169099894,0.32413531,82769.0,82768.0,0.003]
[1742169100485,0.205398,82766.0,82765.0,0.00012317]
[1742169100685,0.505398,82766.0,82765.0,0.00012317]
[1742169101838,0.505398,82766.0,82765.0,0.00212317]
[1742169102209,0.93553725,82766.0,82765.0,0.00512317]
[1742169103447,0.98193725,82766.0,82765.0,1.7e-07]
[1742169103664,0.505445,82747.0,82746.0,0.0003382]
[1742169104865,0.505445,82747.0,82746.0,0.0033382]
[1742169105063,0.52438876,82747.0,82746.0,0.0033382]
[1742169105671,0.52438876,82747.0,82746.0,0.0023382]
[1742169107430,0.52438876,82747.0,82746.0,0.0003382]
[1742169107645,0.52438876,82747.0,82746.0,0.0013382]
[1742169115065,0.52438876,82747.0,82746.0,0.00913202]
[1742169115624,0.52438876,82747.0,82746.0,0.0013382]
[1742169116828,0.31894376,82747.0,82746.0,0.0013382]
[1742169117031,0.52438876,82747.0,82746.0,0.0013382]
[1742169117999,0.31894376,82747.0,82746.0,0.0013382]
[1742169118268,0.33102876,82747.0,82746.0,0.0013382]
[1742169118650,0.31894376,82747.0,82746.0,0.0013382]
[1742169120151,0.01894376,82747.0,82746.0,0.04605512]
[1742169120355,0.012084,82750.0,82746.0,0.12255512]
[1742169120652,0.012084,82748.0,82746.0,0.04605512]
[1742169120804,0.012084,82748.0,82747.0,0.01051401]
[1742169121236,0.205443,82748.0,82747.0,0.01051401]
[1742169121441,0.205443,82748.0,82747.0,1.51051401]
[1742169121619,0.012084,82748.0,82747.0,1.51051401]
[1742169122186,0.012084,82748.0,82747.0,1.51251401]
[1742169122384,0.012084,82748.0,82747.0,1.51451401]
[1742169122920,0.012084,82748.0,82747.0,0.01451401]
[1742169123347,0.012084,82748.0,82747.0,0.004]
[1742169123865,0.03102716,82748.0,82747.0,0.002]
[1742169124065,0.03102716,82748.0,82747.0,0.004]
[1742169124586,0.03102716,82748.0,82747.0,0.002]
[1742169124740,0.03102716,82748.0,82747.0,0.003]
[1742169125514,0.03102716,82748.0,82747.0,0.12257503]
[1742169126562,0.33102716,82748.0,82747.0,0.003]
[1742169126962,0.312084,82748.0,82747.0,0.003]
[1742169127596,0.505445,82747.0,82746.0,0.0003382]
[1742169131440,0.53012859,82747.0,82746.0,0.0003382]
[1742169134161,0.02344179,82759.0,82752.0,0.205431]
[1742169134315,0.193348,82753.0,82747.0,0.0493]
[1742169134521,0.205432,82753.0,82747.0,0.254743]
[1742169135202,0.3,82755.0,82751.0,0.193349]
[1742169135405,0.01135879,82762.0,82750.0,0.012084]
[1742169135406,0.003,82757.0,82756.0,0.193339]
[1742169135538,0.003,82757.0,82755.0,0.012083]